fUSD/lending_fUSD_20240210
["ID","MTS","AMOUNT","RATE_DAILY","PERIOD"]
[313665661,1707556248139,-500.0,0.00023,2]
[313665662,1707556248149,-500.0,0.00023,2]
[313665663,1707556248158,-792.17,0.00023,2]
[313665664,1707556248167,-500.0,0.00023,2]
[313665665,1707556248176,-858.37,0.00023,2]
[313665666,1707556248185,-1169.62,0.00023,2]
[313665667,1707556248194,-2523.848773,0.00023,2]
[313665668,1707556248203,-990.0,0.00023,7]
[313665669,1707556248212,-990.0,0.00023,7]
[313665670,1707556248221,-990.0,0.00023,7]
[313665671,1707556248231,-644.53078,0.00023,7]
[313665672,1707556248241,-153.5000963,0.00023001,2]
[313665673,1707556248250,-153.5000963,0.00023016,2]
[313665674,1707556248259,-255.82818645,0.00023019,2]
[313665675,1707556248268,-153.5000963,0.0002303,2]
[313665676,1707556248278,-153.5000963,0.00023044,2]
[313665677,1707556248287,-153.5000963,0.00023059,2]
[313665678,1707556248295,-2915.94974312,0.00023071,2]
[313665679,1707556248304,-153.5000963,0.00023073,2]
[313665680,1707556248313,-24406.06806674,0.00023081,2]
[313665681,1707556248888,-280.70042105,0.00022896,2]
[313665682,1707556248898,-230.60551161,0.00023081,2]
[313665683,1707556248910,-261.52693976,0.00023081,2]
[313665684,1707556248932,-281.00800018,0.00023081,2]
[313665685,1707556248945,-3160.09065112,0.00023081,2]
[313665686,1707556248956,-3891.02401747,0.00023081,2]
[313665687,1707556248977,-10498.5588,0.00023081,2]
[313665688,1707556248992,-2977.6447998,0.00023081,2]
[313665689,1707556249164,-11665.24654353,0.00023081,2]
[313665690,1707556254136,-56384.90192442,0.00023081,2]
[313665691,1707556254148,-280.36681341,0.00023081,2]
[313665692,1707556254162,-622.05,0.00023081,2]
[313665693,1707556282122,1511.29095241,0.00021924,2]
[313665694,1707556305218,2000.0,0.00022119,2]
[313665695,1707556318556,328.0,0.00021983,2]
[313665696,1707556419326,173.29,0.00021856,2]
[313665697,1707556420184,261.42,0.00019939,2]
[313665698,1707556420402,261.42,0.00022203,2]
[313665699,1707556423864,156.86,0.00021856,2]
[313665700,1707556432517,177.16,0.000222,2]
[313665701,1707556441392,150.0,0.00021856,2]
[313665702,1707556455436,704.53,0.00021855,2]
[313665703,1707556506856,750.0,0.00021852,2]
[313665704,1707556516333,386.44,0.00021852,2]
[313665705,1707556529833,7470.55882954,0.00020606,5]
[313665706,1707556569388,308.75,0.00021848,2]
[313665707,1707556572887,250.0,0.00021848,2]
[313665708,1707556585259,1287.06179451,0.00020606,5]
[313665709,1707556617267,1282.24121435,0.00020606,5]
[313665710,1707556620643,14853.73,0.0002185,2]
[313665711,1707556633268,1422.17418711,0.00020606,5]
[313665712,1707556645236,171.69,0.00021826,2]
[313665713,1707556645996,518.1,0.00021826,2]
[313665714,1707556759704,737.6,0.00021826,2]
[313665715,1707556768617,24446.0,0.00022444,2]
[313665716,1707556774476,684.28,0.0002199,2]
[313665717,1707556774690,684.28,0.0002205,2]
[313665718,1707556775101,684.28,0.00022111,2]
[313665719,1707556775305,684.28,0.00022171,2]
[313665720,1707556775530,684.28,0.00022231,2]
[313665721,1707556775759,684.28,0.00022291,2]
[313665722,1707556775954,684.28,0.00022352,2]
[313665723,1707556776470,684.28,0.00022412,2]
[313665724,1707556776544,684.28,0.00022472,2]
[313665725,1707556876879,235.27,0.00019858,2]
[313665726,1707556877066,235.27,0.00022122,2]
[313665727,1707556949106,587.1,0.00021788,2]
[313665728,1707556993736,193.22,0.00021785,2]
[313665729,1707557067407,212.83337149,0.000222,2]
[313665730,1707557120423,155.0,0.000222,30]
[313665732,1707557142759,155.0,0.000222,30]
[313665740,1707557228595,13872.13226234,0.00022,2]
[313665742,1707557255160,409.92,0.00021751,2]
[313665743,1707557268178,376.35,0.00021922,2]
[313665744,1707557268235,376.35,0.00021982,2]
[313665745,1707557268286,376.35,0.00022042,2]
[313665746,1707557268475,376.35,0.00022102,2]
[313665747,1707557268681,376.35,0.00022162,2]
[313665748,1707557268880,376.35,0.00022222,2]
[313665749,1707557269075,376.35,0.00022282,2]
[313665750,1707557269270,376.35,0.00022342,2]
[313665751,1707557269462,376.35,0.00022402,2]
[313665752,1707557269678,376.35,0.00022463,2]
[313665753,1707557276442,3244.18,0.00021716,2]
[313665754,1707557284253,211.0,0.00022167,2]
[313665755,1707557304839,156.18545694,0.00022501,2]
[313665756,1707557318477,322.11136418,0.00022501,2]
[313665762,1707557388400,153.76064208,0.00022459,2]
[313665763,1707557393399,153.76064197,0.0002249,2]
[313665775,1707557431526,-261.48482609,0.00022519,2]
[313665776,1707557431535,-153.76064197,0.0002252,2]
[313665777,1707557431544,-376.35,0.00022523,2]
[313665778,1707557431553,-153.76064197,0.00022551,2]
[313665779,1707557431562,-15943.66601057,0.00022557,2]
[313665789,1707557437527,-1173.87081126,0.00022557,2]
[313665790,1707557437536,-538.16918874,0.00022558,5]
[313665946,1707557439993,523.28822419,0.00022899,30]
[313665947,1707557440096,-606.54717402,0.00022558,5]
[313665948,1707557440110,-536.594,0.00022558,5]
[313665949,1707557440155,-2789.2038977,0.00022558,5]
[313665950,1707557440168,-306.09729367,0.00022558,5]
[313665951,1707557440902,-2364.95609657,0.00022558,5]
[313665952,1707557440912,-150.0,0.00022558,2]
[313665953,1707557440921,-150.0,0.00022558,2]
[313665954,1707557440931,-2411.3271,0.00022559,2]
[313665955,1707557440940,-1076.97406948,0.00022559,2]
[313665956,1707557440950,-2140.2391,0.0002256,2]
[313665957,1707557440959,-153.76064197,0.00022582,2]
[313665958,1707557440969,-376.35,0.00022583,2]
[313665959,1707557440978,-153.76064197,0.00022613,2]
[313665960,1707557440987,-1076.97406945,0.00022629,2]
[313665961,1707557440997,-162.47,0.00022642,2]
[313665962,1707557441007,-499.99,0.00022642,2]
[313665963,1707557441017,-376.35,0.00022643,2]
[313665964,1707557441027,-6619.25,0.00022643,2]
[313665965,1707557441036,-581.22,0.00022643,2]
[313665966,1707557441045,-153.76064197,0.00022643,2]
[313665967,1707557441054,-478.52624316,0.00022645,2]
[313665968,1707557441063,-129987.82277163,0.00022655,2]
[313665969,1707557441073,-323.01009644,0.00022656,2]
[313665970,1707557441083,-6145.92,0.00022656,2]
[313665971,1707557441092,-8975.72968912,0.00022656,2]
[313665972,1707557441109,-1235.59031088,0.00022656,2]
[313665973,1707557441121,-1000.0,0.00022657,2]
[313665974,1707557441131,-597.48018043,0.00022658,2]
[313665975,1707557441142,-499.99,0.00022658,2]
[313665976,1707557441153,-74053.099555,0.00022659,2]
[313665977,1707557441162,-8375.7556,0.0002266,2]
[313665978,1707557441173,-273.46943053,0.00022666,2]
[313665979,1707557441183,-153.76064197,0.00022674,2]
[313665980,1707557441194,-441.73275921,0.00022696,2]
[313665981,1707557441203,-572.76,0.00022696,2]
[313665982,1707557441213,-500.0,0.00022696,2]
[313665983,1707557441222,-500.0,0.00022696,2]
[313665984,1707557441232,-280.424,0.00022697,2]
[313665985,1707557441241,-7983.84018059,0.00022697,2]
[313665986,1707557441255,-1090.73971941,0.00022697,2]
[313665987,1707557441265,-1975.9218,0.00022697,2]
[313665988,1707557441275,-1076.97406945,0.00022698,2]
[313665989,1707557441285,-4109.4077,0.000227,2]
[313665990,1707557441294,-566.0855557,0.000227,2]
[313665991,1707557441306,-376.35,0.00022703,2]
[313665992,1707557441315,-153.76064197,0.00022705,2]
[313665993,1707557441324,-500.0,0.00022745,2]
[313665994,1707557441334,-634.53,0.00022745,2]
[313665995,1707557441343,-1940.63,0.00022745,2]
[313665996,1707557441352,-683.51,0.00022745,2]
[313665997,1707557441362,-7556.94,0.00022745,2]
[313665998,1707557441371,-714.57,0.00022745,2]
[313665999,1707557441381,-500.0,0.00022745,2]
[313666000,1707557441391,-2550.31,0.00022745,2]
[313666001,1707557441402,-1864.13,0.00022745,2]
[313666002,1707557441411,-919.82,0.00022745,2]
[313666003,1707557441421,-500.0,0.00022745,2]
[313666004,1707557441431,-556.56,0.00022745,2]
[313666005,1707557441441,-658.83,0.00022745,2]
[313666006,1707557441451,-599.69,0.00022745,2]
[313666007,1707557441460,-500.0,0.00022745,2]
[313666008,1707557441470,-2392.15,0.00022745,2]
[313666009,1707557441480,-7358.95,0.00022745,2]
[313666010,1707557441489,-586.47,0.00022745,2]
[313666011,1707557441499,-2280.24,0.00022745,2]
[313666012,1707557441510,-500.0,0.00022745,2]
[313666013,1707557441520,-834.16,0.00022745,2]
[313666014,1707557441530,-393.41157341,0.00022745,2]
[313666015,1707557441539,-768.46,0.00022745,2]
[313666016,1707557441549,-500.0,0.00022745,2]
[313666017,1707557441558,-500.0,0.00022745,2]
[313666018,1707557441567,-3063.11,0.00022745,2]
[313666019,1707557441576,-3519.69,0.00022745,2]
[313666020,1707557441586,-658.69,0.00022745,2]
[313666021,1707557441596,-1070.64,0.00022745,2]
[313666022,1707557441605,-6838.77,0.00022745,2]
[313666023,1707557441614,-376.35,0.00022763,2]
[313666024,1707557441624,-192.51574748,0.00022789,2]
[313666025,1707557441633,-786.33903081,0.00022795,2]
[313666026,1707557441643,-160.39810901,0.00022795,2]
[313666027,1707557441653,-155.57012619,0.00022795,2]
[313666028,1707557441663,-522.30728195,0.00022795,2]
[313666029,1707557441672,-2265.23379337,0.00022795,2]
[313666030,1707557441682,-946.88538598,0.00022795,2]
[313666031,1707557441691,-5211.60315265,0.00022796,2]
[313666032,1707557441701,-155.0,0.00022796,2]
[313666033,1707557441710,-359.12673014,0.00022796,2]
[313666034,1707557441720,-1479.71852404,0.00022796,2]
[313666035,1707557441729,-15057.58943278,0.00022797,2]
[313666036,1707557441743,-260.54,0.00022797,2]
[313666037,1707557441902,-539.33852782,0.00022797,2]
[313666038,1707557441914,-350.55781886,0.00022797,2]
[313666039,1707557441926,-4966.7063304,0.00022797,2]
[313666040,1707557441939,-321.76073503,0.00022797,2]
[313666041,1707557441950,-557.57111248,0.00022797,2]
[313666042,1707557441963,-4126.8,0.00022797,2]
[313666043,1707557441975,-1012.34960516,0.00022797,2]
[313666044,1707557441991,-613.46221154,0.00022797,2]
[313666045,1707557442004,-804.29,0.00022797,2]
[313666054,1707557443589,-1700.0,0.00022797,2]
[313666055,1707557443701,-12909.50123718,0.00022797,2]
[313666056,1707557443759,-1017.312,0.00022797,2]
[313666057,1707557443771,-1012.97035628,0.00022797,2]
[313666058,1707557443783,-1553.74835001,0.00022797,2]
[313666059,1707557443816,-18549.83420458,0.00022797,2]
[313666060,1707557443828,-2297.95999815,0.00022797,2]
[313666061,1707557443892,-4715.7,0.00022797,2]
[313666067,1707557443998,-27632.00807973,0.00022797,2]
[313666069,1707557444009,-1000.0,0.00022797,2]
[313666071,1707557444019,-1960.8537076,0.00022797,2]
[313666073,1707557444029,-622.96,0.00022798,2]
[313666076,1707557444039,-3035.28,0.00022798,2]
[313666078,1707557444049,-500.0,0.00022798,2]
[313666079,1707557444059,-500.0,0.00022798,2]
[313666080,1707557444068,-2883.55,0.00022798,2]
[313666081,1707557444078,-2490.48,0.00022798,2]
[313666082,1707557444088,-20062.28,0.00022798,2]
[313666083,1707557444100,-1361.85,0.00022798,2]
[313666084,1707557444110,-500.0,0.00022798,2]
[313666085,1707557444121,-736.64,0.00022798,2]
[313666086,1707557444130,-500.0,0.00022798,2]
[313666087,1707557444141,-10331.24,0.00022798,2]
[313666088,1707557444150,-500.0,0.00022798,2]
[313666089,1707557444161,-500.0,0.00022798,2]
[313666090,1707557444171,-981.39,0.00022798,2]
[313666091,1707557444182,-500.0,0.00022798,2]
[313666092,1707557444192,-500.0,0.00022798,2]
[313666093,1707557444421,-559.64,0.00022798,2]
[313666094,1707557444430,-4016.22,0.00022798,2]
[313666095,1707557444439,-514.37,0.00022798,2]
[313666096,1707557444448,-675.05,0.00022798,2]
[313666097,1707557444458,-3610.0,0.00022798,2]
[313666098,1707557444467,-1912.29,0.00022798,2]
[313666099,1707557444476,-1209.1,0.00022798,2]
[313666100,1707557444485,-14904.35,0.00022798,2]
[313666101,1707557444494,-591.95,0.00022798,2]
[313666102,1707557444503,-549.46,0.00022798,2]
[313666103,1707557444512,-642.9,0.00022798,2]
[313666104,1707557444521,-1023.88,0.00022798,2]
[313666105,1707557444531,-972.22,0.00022798,2]
[313666106,1707557444540,-2440.69,0.00022798,2]
[313666107,1707557444549,-520.07,0.00022798,2]
[313666108,1707557444558,-883.1,0.00022798,2]
[313666109,1707557444567,-5000.0,0.00022798,2]
[313666110,1707557444577,-8354.97078833,0.00022799,2]
[313666116,1707557445671,-500.0,0.00022696,2]
[313666117,1707557445681,-1609.66,0.00022798,2]
[313666118,1707557445690,-47200.02921167,0.00022799,2]
[313666119,1707557445699,-500.0,0.00022799,2]
[313666120,1707557445708,-500.0,0.00022799,2]
[313666121,1707557445717,-500.0,0.00022799,2]
[313666122,1707557445726,-500.0,0.00022799,2]
[313666123,1707557445735,-500.0,0.00022799,2]
[313666124,1707557445744,-500.0,0.00022799,2]
[313666125,1707557445753,-500.0,0.00022799,2]
[313666126,1707557445762,-500.0,0.00022799,2]
[313666127,1707557445771,-500.0,0.00022799,2]
[313666128,1707557445780,-500.0,0.00022799,2]
[313666129,1707557445789,-524.97,0.00022799,7]
[313666130,1707557445798,-500.0,0.00022799,2]
[313666131,1707557445808,-500.0,0.00022799,2]
[313666132,1707557445817,-300.87223974,0.00022799,2]
[313666133,1707557445826,-500.0,0.00022799,2]
[313666134,1707557445835,-500.0,0.00022799,2]
[313666135,1707557445845,-528.09,0.00022799,2]
[313666137,1707557445854,-500.0,0.00022799,2]
[313666139,1707557445863,-500.0,0.00022799,2]
[313666141,1707557445872,-500.0,0.00022799,2]
[313666143,1707557445881,-500.0,0.00022799,2]
[313666145,1707557445890,-500.0,0.00022799,2]
[313666147,1707557445899,-582.04935055,0.00022799,2]
[313666149,1707557445909,-500.0,0.00022799,2]
[313666152,1707557445928,-500.0,0.00022799,2]
[313666154,1707557445939,-500.0,0.00022799,2]
[313666155,1707557445948,-500.0,0.00022799,2]
[313666156,1707557445958,-500.0,0.00022799,2]
[313666157,1707557445967,-500.0,0.00022799,2]
[313666158,1707557445977,-500.0,0.00022799,2]
[313666159,1707557445987,-500.0,0.00022799,2]
[313666160,1707557445997,-500.0,0.00022799,2]
[313666161,1707557446007,-500.0,0.00022799,2]
[313666162,1707557446017,-500.0,0.00022799,2]
[313666163,1707557446027,-500.0,0.00022799,2]
[313666164,1707557446036,-500.0,0.00022799,2]
[313666165,1707557446046,-500.0,0.00022799,2]
[313666166,1707557446056,-679.74,0.00022799,2]
[313666167,1707557446066,-150.0,0.00022799,2]
[313666168,1707557446076,-500.0,0.00022799,2]
[313666169,1707557446085,-500.0,0.00022799,2]
[313666170,1707557446096,-500.0,0.00022799,2]
[313666171,1707557446108,-500.0,0.00022799,2]
[313666172,1707557446118,-196.83697296,0.00022799,2]
[313666173,1707557446128,-500.0,0.00022799,2]
[313666174,1707557446138,-500.0,0.00022799,2]
[313666175,1707557446147,-500.0,0.00022799,2]
[313666176,1707557446157,-500.0,0.00022799,2]
[313666177,1707557446167,-500.0,0.00022799,2]
[313666178,1707557446177,-500.0,0.00022799,2]
[313666179,1707557446187,-500.0,0.00022799,2]
[313666180,1707557446197,-500.0,0.00022799,2]
[313666181,1707557446206,-500.0,0.00022799,2]
[313666182,1707557446216,-500.0,0.00022799,2]
[313666183,1707557446225,-500.0,0.00022799,2]
[313666184,1707557446235,-500.0,0.00022799,2]
[313666185,1707557446245,-156.96966223,0.00022799,2]
[313666186,1707557446254,-704.1,0.00022799,2]
[313666187,1707557446264,-564.51,0.00022799,2]
[313666188,1707557446273,-500.0,0.00022799,2]
[313666189,1707557446283,-500.0,0.00022799,2]
[313666190,1707557446292,-500.0,0.00022799,2]
[313666191,1707557446302,-500.0,0.00022799,2]
[313666192,1707557446311,-500.0,0.00022799,2]
[313666193,1707557446321,-500.0,0.00022799,2]
[313666194,1707557446331,-925.81,0.00022799,2]
[313666195,1707557446340,-500.0,0.00022799,2]
[313666196,1707557446350,-500.0,0.00022799,2]
[313666197,1707557446362,-500.0,0.00022799,2]
[313666198,1707557446372,-500.0,0.00022799,2]
[313666199,1707557446382,-500.0,0.00022799,2]
[313666200,1707557446391,-622.178804,0.00022799,2]
[313666201,1707557446401,-500.0,0.00022799,2]
[313666202,1707557446411,-600.55983225,0.00022799,2]
[313666203,1707557446421,-500.0,0.00022799,2]
[313666204,1707557446430,-500.0,0.00022799,2]
[313666205,1707557446440,-500.0,0.00022799,2]
[313666206,1707557446450,-599.13016711,0.00022799,2]
[313666207,1707557446460,-500.0,0.00022799,2]
[313666208,1707557446469,-5687.26,0.00022799,2]
[313666209,1707557446479,-500.0,0.00022799,2]
[313666210,1707557446488,-500.0,0.00022799,2]
[313666211,1707557446500,-500.0,0.00022799,2]
[313666212,1707557446510,-732.31,0.00022799,2]
[313666213,1707557446519,-500.0,0.00022799,2]
[313666214,1707557446529,-551.42,0.00022799,2]
[313666215,1707557446538,-500.0,0.00022799,2]
[313666216,1707557446548,-2376.59,0.00022799,2]
[313666217,1707557446557,-500.0,0.00022799,2]
[313666218,1707557446567,-501.65248826,0.00022799,2]
[313666219,1707557446576,-854.56,0.00022799,2]
[313666220,1707557446586,-512.8438246,0.00022799,2]
[313666221,1707557446595,-500.0,0.00022799,2]
[313666222,1707557446605,-773.51,0.00022799,2]
[313666223,1707557446615,-4238.07,0.00022799,2]
[313666224,1707557446624,-500.0,0.00022799,2]
[313666225,1707557446638,-602.68535494,0.00022799,2]
[313666226,1707557446648,-500.0,0.00022799,2]
[313666227,1707557446658,-2989.74,0.00022799,2]
[313666228,1707557446667,-3531.75,0.00022799,2]
[313666229,1707557446677,-2513.73,0.00022799,2]
[313666230,1707557446687,-500.0,0.00022799,2]
[313666231,1707557446697,-5162.75,0.00022799,2]
[313666232,1707557446707,-2906.42,0.00022799,2]
[313666233,1707557446716,-500.0,0.00022799,2]
[313666234,1707557446726,-500.0,0.00022799,2]
[313666235,1707557446736,-6060.88,0.00022799,2]
[313666236,1707557446746,-2855.13,0.00022799,2]
[313666237,1707557446756,-500.0,0.00022799,2]
[313666238,1707557446765,-500.0,0.00022799,2]
[313666239,1707557446775,-3655.05,0.00022799,2]
[313666240,1707557446785,-1915.91,0.00022799,2]
[313666241,1707557446794,-500.0,0.00022799,2]
[313666242,1707557446804,-500.0,0.00022799,2]
[313666243,1707557446813,-1376.44,0.00022799,2]
[313666244,1707557446823,-500.0,0.00022799,2]
[313666245,1707557446832,-1399.03,0.00022799,2]
[313666246,1707557446843,-500.0,0.00022799,2]
[313666247,1707557446853,-5391.11,0.00022799,2]
[313666248,1707557446973,-4300.31,0.00022799,2]
[313666249,1707557446982,-500.0,0.00022799,2]
[313666250,1707557446992,-566.43,0.00022799,2]
[313666251,1707557447002,-500.0,0.00022799,2]
[313666252,1707557447011,-1370.0,0.00022799,2]
[313666253,1707557447019,-500.0,0.00022799,2]
[313666254,1707557447029,-500.0,0.00022799,2]
[313666255,1707557447038,-500.0,0.00022799,2]
[313666256,1707557447047,-563.31,0.00022799,2]
[313666257,1707557447056,-744.57,0.00022799,2]
[313666258,1707557447066,-166.38103624,0.00022799,2]
[313666259,1707557447075,-500.0,0.00022799,2]
[313666260,1707557447083,-2707.08,0.00022799,2]
[313666261,1707557447093,-2110.47,0.00022799,2]
[313666262,1707557447104,-500.0,0.00022799,2]
[313666263,1707557447113,-2258.93,0.00022799,2]
[313666264,1707557447122,-500.0,0.00022799,2]
[313666265,1707557447131,-430.23955784,0.00022799,2]
[313666266,1707557447141,-500.0,0.00022799,2]
[313666267,1707557447150,-500.0,0.00022799,2]
[313666268,1707557447159,-1082.51,0.00022799,2]
[313666269,1707557447169,-2021.7,0.00022799,2]
[313666270,1707557447180,-500.0,0.00022799,2]
[313666271,1707557447189,-500.0,0.00022799,2]
[313666272,1707557447198,-2253.67,0.00022799,2]
[313666273,1707557447208,-500.0,0.00022799,2]
[313666274,1707557447217,-1601.21,0.00022799,2]
[313666275,1707557447226,-500.0,0.00022799,2]
[313666276,1707557447235,-500.0,0.00022799,2]
[313666277,1707557447244,-1433.08,0.00022799,2]
[313666278,1707557447253,-500.0,0.00022799,2]
[313666279,1707557447262,-707.76,0.00022799,2]
[313666280,1707557447271,-352.97335583,0.00022799,2]
[313666281,1707557447280,-2456.88,0.00022799,2]
[313666282,1707557447289,-500.0,0.00022799,2]
[313666283,1707557447298,-42095.11234118,0.000228,2]
[313666284,1707557447312,-20518.24749346,0.000228,2]
[313666285,1707557447324,-419.59727266,0.000228,2]
[313666286,1707557447350,-500.0,0.00022696,2]
[313666287,1707557447359,-5039.74377319,0.000228,2]
[313666288,1707557447370,-917.26116918,0.000228,2]
[313666289,1707557447383,-2350.7526,0.000228,2]
[313666290,1707557447411,-2861.5891611,0.000228,2]
[313666291,1707557447426,-17480.40620442,0.000228,2]
[313666292,1707557460023,622.39886001,0.00021884,2]
[313666293,1707557460494,193.22,0.0002186,2]
[313666295,1707557466559,530.43,0.0002186,2]
[313666296,1707557507134,5214.50520179,0.0002186,2]
[313666297,1707557525145,5214.50520179,0.0002186,2]
[313666298,1707557547143,3594.70004485,0.0002186,2]
[313666301,1707557634470,228.31,0.00019894,2]
[313666302,1707557634702,228.31,0.00022158,2]
[313666303,1707557652933,173.29,0.00021812,2]
[313666304,1707557710604,672.06,0.0002212,2]
[313666305,1707557771606,157.77,0.00021975,2]
[313666306,1707557771807,157.77,0.0002207,2]
[313666307,1707557772002,157.77,0.00022166,2]
[313666308,1707557772232,157.77,0.00022261,2]
[313666309,1707557772422,157.77,0.00022357,2]
[313666310,1707557772644,157.77,0.00022452,2]
[313666311,1707557897075,153.76064197,0.00022458,2]
[313666312,1707557920737,442.02,0.00021753,2]
[313666313,1707557936219,151.4,0.00021747,2]
[313666316,1707558047867,245000.0,0.000225,2]
[313666317,1707558062592,2173.9682,0.000225,2]
[313666318,1707558135808,205.47,0.00019794,2]
[313666319,1707558136029,205.47,0.00022058,2]
[313666320,1707558232001,15000.0,0.00022,2]
[313666321,1707558232587,15000.0,0.00022038,2]
[313666322,1707558232808,15000.0,0.00022075,2]
[313666323,1707558236467,15000.0,0.00022113,2]
[313666324,1707558236926,8204.51,0.0002215,2]
[313666325,1707558250390,245000.0,0.000225,2]
[313666326,1707558259632,462.35,0.00021724,2]
[313666327,1707558274789,1010.0,0.000225,2]
[313666328,1707558282406,15000.0,0.00022,2]
[313666329,1707558283006,15000.0,0.00022038,2]
[313666330,1707558283477,15000.0,0.00022075,2]
[313666331,1707558283906,15000.0,0.00022113,2]
[313666332,1707558286712,15000.0,0.0002215,2]
[313666333,1707558287129,15000.0,0.00022188,2]
[313666334,1707558288422,15000.0,0.00022263,2]
[313666335,1707558288848,15000.0,0.000223,2]
[313666336,1707558289274,15000.0,0.00022338,2]
[313666337,1707558289686,15000.0,0.00022375,2]
[313666338,1707558290142,15000.0,0.00022413,2]
[313666339,1707558290618,15000.0,0.0002245,2]
[313666340,1707558291075,15000.0,0.00022488,2]
[313666341,1707558299814,157.77,0.00021841,2]
[313666342,1707558299967,157.77,0.00022031,2]
[313666343,1707558300170,157.77,0.00022221,2]
[313666344,1707558300377,157.77,0.00022411,2]
[313666345,1707558305198,339.11115147,0.00022857,30]
[313666347,1707558318017,-150.0,0.00022524,2]
[313666348,1707558318041,-14850.0,0.00022525,2]
[313666349,1707558324181,15000.0,0.00022,2]
[313666350,1707558327501,153.76064197,0.00022457,2]
[313666351,1707558334937,-7141.5676507,0.00022524,5]
[313666352,1707558334969,1000.0,0.000225,2]
[313666353,1707558361330,1881.0,0.000225,2]
[313666354,1707558458602,714.5676507,0.000225,2]
[313666355,1707558458625,714.5676507,0.000225,2]
[313666356,1707558458649,714.5676507,0.000225,2]
[313666357,1707558458673,471.5676507,0.000225,2]
[313666358,1707558458695,225505.1816972,0.000225,2]
[313666360,1707558522074,151.4,0.0002165,2]
[313666398,1707558587490,368.35,0.0002165,2]
[313666404,1707558631678,-150.0,0.00022525,2]
[313666405,1707558631688,-153.76064197,0.00022532,2]
[313666406,1707558631697,-300.0,0.00022543,2]
[313666407,1707558631706,-7141.5676507,0.00022543,5]
[313666408,1707558631714,-707.47203583,0.00022544,2]
[313666409,1707558631782,-456.81059646,0.00022544,2]
[313666410,1707558631950,-350.0,0.00022544,2]
[313666411,1707558631962,-294.37653036,0.00022544,2]
[313666412,1707558632018,-117.32483735,0.00022544,2]
[313666413,1707558632027,-2096.94407652,0.00022544,2]
[313666430,1707558637692,-491.64613668,0.00022544,2]
[313666431,1707558637753,-1850.67,0.00022544,2]
[313666432,1707558637765,-2059.859502,0.00022544,2]
[313666433,1707558637865,-4396.51692642,0.00022544,2]
[313666434,1707558638042,-1680.77295838,0.00022544,2]
[313666435,1707558638052,-155.63922729,0.00022558,2]
[313666436,1707558638062,-496.95386542,0.00022559,2]
[313666437,1707558638074,-503.04613458,0.00022559,2]
[313666438,1707558638083,-1617.26758287,0.00022563,2]
[313666651,1707558640318,-443.79993554,0.00022563,2]
[313666706,1707558641037,-12938.93248159,0.00022563,2]
[313666708,1707558641046,-418.7104628,0.00022596,2]
[313666711,1707558641056,-265.83929957,0.00022597,2]
[313666713,1707558641066,-389.67,0.00022597,2]
[313666715,1707558641076,-787.11,0.00022597,2]
[313666717,1707558641086,-690.07,0.00022597,2]
[313666719,1707558641095,-1000.0,0.00022599,2]
[313666720,1707558641104,-500.0,0.00022599,2]
[313666723,1707558641114,-500.0,0.00022599,2]